[Event "Titled Tuesday Blitz November 16 2021"]
[White "Djokic, Mihailo"]
[Black "Willow, Jonah B"]
[WhiteFideId "976440"]
[BlackFideId "438804"]
[WhiteElo "2008"]
[BlackElo "2261"]
[Result "1-0"]
[Round "03"]
[TimeControl "180+1"]
[Date "2021.11.16"]
[WhiteClock "0:00:56"]
[BlackClock "0:00:12"]

1. e4 {[%clk 0:03:00]}  c5 {[%clk 0:02:59]} 2. Nf3 {[%clk 0:03:01]}  Nc6 {[%clk 0:02:59]} 3. d4 {[%clk 0:03:02]}  cxd4 {[%clk 0:03:00]} 4. Nxd4 {[%clk 0:03:02]}  g6 {[%clk 0:03:01]} 5. Nc3 {[%clk 0:03:02]}  Bg7 {[%clk 0:03:01]} 6. Be3 {[%clk 0:03:03]}  Nf6 {[%clk 0:03:01]} 7. Bc4 {[%clk 0:03:03]}  O-O {[%clk 0:03:02]} 8. Bb3 {[%clk 0:03:04]}  d6 {[%clk 0:03:02]} 9. h3 {[%clk 0:03:04]}  Bd7 {[%clk 0:02:55]} 10. O-O {[%clk 0:03:04]}  a6 {[%clk 0:02:54]} 11. f4 {[%clk 0:03:04]}  Nxd4 {[%clk 0:02:51]} 12. Bxd4 {[%clk 0:03:03]}  Bc6 {[%clk 0:02:51]} 13. Qd3 {[%clk 0:03:00]}  Qa5 {[%clk 0:02:50]} 14. Rae1 {[%clk 0:02:56]}  Rfd8 {[%clk 0:02:49]} 15. f5 {[%clk 0:02:55]}  Rac8 {[%clk 0:02:39]} 16. Qe3 {[%clk 0:02:48]}  Rf8 {[%clk 0:02:31]} 17. g4 {[%clk 0:02:18]}  Nd7 {[%clk 0:02:28]} 18. Bxg7 {[%clk 0:02:17]}  Kxg7 {[%clk 0:02:29]} 19. g5 {[%clk 0:02:09]}  Qc5 {[%clk 0:02:27]} 20. f6+ {[%clk 0:02:05]}  exf6 {[%clk 0:02:23]} 21. Qxc5 {[%clk 0:02:01]}  dxc5 {[%clk 0:02:23]} 22. gxf6+ {[%clk 0:01:59]}  Nxf6 {[%clk 0:02:24]} 23. e5 {[%clk 0:01:59]}  Nh5 {[%clk 0:02:20]} 24. e6 {[%clk 0:01:52]}  b5 {[%clk 0:02:07]} 25. e7 {[%clk 0:01:49]}  Rfe8 {[%clk 0:01:26]} 26. Bxf7 {[%clk 0:01:44]}  Rh8 {[%clk 0:01:24]} 27. Be6 {[%clk 0:01:40]}  Rce8 {[%clk 0:01:17]} 28. Rf7+ {[%clk 0:01:40]}  Kh6 {[%clk 0:01:17]} 29. Nd5 {[%clk 0:01:36]}  Bxd5 {[%clk 0:00:29]} 30. Bxd5 {[%clk 0:01:35]}  Ng7 {[%clk 0:00:28]} 31. Bc6 {[%clk 0:01:31]}  Rc8 {[%clk 0:00:29]} 32. Bd7 {[%clk 0:01:21]}  Rb8 {[%clk 0:00:28]} 33. Rxg7 {[%clk 0:01:09]}  Kxg7 {[%clk 0:00:23]} 34. e8=Q {[%clk 0:01:10]}  Rhxe8 {[%clk 0:00:21]} 35. Rxe8 {[%clk 0:01:09]}  Rb6 {[%clk 0:00:18]} 36. Re6 {[%clk 0:01:08]}  Rb7 {[%clk 0:00:15]} 37. Bc8 {[%clk 0:01:08]}  Rc7 {[%clk 0:00:15]} 38. Bxa6 {[%clk 0:01:08]}  b4 {[%clk 0:00:16]} 39. Bc4 {[%clk 0:01:08]}  Kh6 {[%clk 0:00:16]} 40. a4 {[%clk 0:01:07]}  bxa3 {[%clk 0:00:15]} 41. bxa3 {[%clk 0:01:07]}  Ra7 {[%clk 0:00:16]} 42. Re3 {[%clk 0:01:07]}  Kg5 {[%clk 0:00:16]} 43. Bb5 {[%clk 0:01:03]}  Kf4 {[%clk 0:00:16]} 44. Rc3 {[%clk 0:01:03]}  Ke4 {[%clk 0:00:15]} 45. a4 {[%clk 0:01:04]}  Kd4 {[%clk 0:00:15]} 46. Rc4+ {[%clk 0:01:04]}  Kd5 {[%clk 0:00:16]} 47. Rh4 {[%clk 0:01:04]}  h5 {[%clk 0:00:16]} 48. Kf2 {[%clk 0:01:00]}  Rf7+ {[%clk 0:00:16]} 49. Ke2 {[%clk 0:01:01]}  Ke5 {[%clk 0:00:15]} 50. Rc4 {[%clk 0:01:00]}  Kd5 {[%clk 0:00:14]} 51. Rc3 {[%clk 0:01:00]}  Ra7 {[%clk 0:00:14]} 52. Rg3 {[%clk 0:00:59]}  Rg7 {[%clk 0:00:13]} 53. Rg5+ {[%clk 0:00:58]}  Kd4 {[%clk 0:00:12]} 54. Kd2 {[%clk 0:00:58]}  c4 {[%clk 0:00:12]} 55. c3+ {[%clk 0:00:57]}  Ke4 {[%clk 0:00:13]} 56. Bxc4 {[%clk 0:00:57]}  Kf4 {[%clk 0:00:13]} 57. h4 {[%clk 0:00:56]}  Rd7+ {[%clk 0:00:12]} 58. Bd3 {[%clk 0:00:56]} 1-0


[Site "https://www.chess.com"]

[Event "Titled Tuesday Blitz November 16 2021"]
[White "Dzhaparov, Medet"]
[Black "Bernadskiy, Vitaliy"]
[WhiteFideId "13803689"]
[BlackFideId "14100371"]
[WhiteElo "1702"]
[BlackElo "2510"]
[Result "1/2-1/2"]
[Round "03"]
[TimeControl "180+1"]
[Date "2021.11.16"]
[WhiteClock "0:00:10"]
[BlackClock "0:01:41"]

1. d4 {[%clk 0:03:00]}  Nf6 {[%clk 0:02:58]} 2. c4 {[%clk 0:03:01]}  g6 {[%clk 0:02:57]} 3. Nf3 {[%clk 0:03:00]}  Bg7 {[%clk 0:02:57]} 4. g3 {[%clk 0:03:01]}  O-O {[%clk 0:02:58]} 5. Bg2 {[%clk 0:03:01]}  d6 {[%clk 0:02:58]} 6. O-O {[%clk 0:03:01]}  Nbd7 {[%clk 0:02:58]} 7. Nc3 {[%clk 0:03:01]}  e5 {[%clk 0:02:59]} 8. e4 {[%clk 0:03:01]}  b6 {[%clk 0:02:58]} 9. h3 {[%clk 0:02:53]}  exd4 {[%clk 0:02:48]} 10. Nxd4 {[%clk 0:02:51]}  Bb7 {[%clk 0:02:48]} 11. Be3 {[%clk 0:02:44]}  Re8 {[%clk 0:02:47]} 12. Qc2 {[%clk 0:02:32]}  Nc5 {[%clk 0:02:47]} 13. f3 {[%clk 0:02:31]}  Nh5 {[%clk 0:02:45]} 14. Nde2 {[%clk 0:02:19]}  f5 {[%clk 0:02:42]} 15. g4 {[%clk 0:01:54]}  Nf6 {[%clk 0:02:37]} 16. Bxc5 {[%clk 0:01:48]}  dxc5 {[%clk 0:02:24]} 17. exf5 {[%clk 0:01:48]}  gxf5 {[%clk 0:02:23]} 18. Qxf5 {[%clk 0:01:45]}  Qd2 {[%clk 0:02:23]} 19. Ng3 {[%clk 0:00:45]}  Qxb2 {[%clk 0:02:20]} 20. Nce4 {[%clk 0:00:42]}  Nxe4 {[%clk 0:02:18]} 21. Nxe4 {[%clk 0:00:39]}  Qd4+ {[%clk 0:02:18]} 22. Kh1 {[%clk 0:00:38]}  Qe5 {[%clk 0:02:01]} 23. Rad1 {[%clk 0:00:28]}  Qxf5 {[%clk 0:02:00]} 24. gxf5 {[%clk 0:00:29]}  Bd4 {[%clk 0:02:00]} 25. Rfe1 {[%clk 0:00:21]}  Rf8 {[%clk 0:01:59]} 26. f6 {[%clk 0:00:16]}  Bxe4 {[%clk 0:01:58]} 27. fxe4 {[%clk 0:00:14]}  Rxf6 {[%clk 0:01:59]} 28. e5 {[%clk 0:00:14]}  Rff8 {[%clk 0:01:59]} 29. Bd5+ {[%clk 0:00:13]}  Kg7 {[%clk 0:01:58]} 30. Bxa8 {[%clk 0:00:13]}  Rxa8 {[%clk 0:01:58]} 31. e6 {[%clk 0:00:14]}  Re8 {[%clk 0:01:57]} 32. Re4 {[%clk 0:00:14]}  Kf6 {[%clk 0:01:57]} 33. Rf1+ {[%clk 0:00:14]}  Ke7 {[%clk 0:01:55]} 34. Rf7+ {[%clk 0:00:15]}  Kd6 {[%clk 0:01:56]} 35. Rd7+ {[%clk 0:00:14]}  Kc6 {[%clk 0:01:56]} 36. Rxh7 {[%clk 0:00:14]}  a6 {[%clk 0:01:55]} 37. a4 {[%clk 0:00:15]}  b5 {[%clk 0:01:54]} 38. axb5+ {[%clk 0:00:16]}  axb5 {[%clk 0:01:55]} 39. cxb5+ {[%clk 0:00:17]}  Kd5 {[%clk 0:01:56]} 40. Re1 {[%clk 0:00:17]}  c4 {[%clk 0:01:57]} 41. Rxc7 {[%clk 0:00:16]}  c3 {[%clk 0:01:56]} 42. b6 {[%clk 0:00:17]}  Bxb6 {[%clk 0:01:55]} 43. Rxc3 {[%clk 0:00:16]}  Ba5 {[%clk 0:01:54]} 44. Rd3+ {[%clk 0:00:17]}  Kc4 {[%clk 0:01:53]} 45. Ree3 {[%clk 0:00:17]}  Bb6 {[%clk 0:01:52]} 46. Rc3+ {[%clk 0:00:17]}  Kd4 {[%clk 0:01:51]} 47. Red3+ {[%clk 0:00:17]}  Ke4 {[%clk 0:01:50]} 48. Rd6 {[%clk 0:00:17]}  Be3 {[%clk 0:01:45]} 49. Rc4+ {[%clk 0:00:16]}  Kf3 {[%clk 0:01:45]} 50. Rc3 {[%clk 0:00:14]}  Rh8 {[%clk 0:01:44]} 51. Rxe3+ {[%clk 0:00:14]}  Kxe3 {[%clk 0:01:44]} 52. Kg2 {[%clk 0:00:11]}  Rg8+ {[%clk 0:01:41]} 53. Kh2 {[%clk 0:00:08]}  Ke4 {[%clk 0:01:34]} 54. Rd1 {[%clk 0:00:08]}  Re8 {[%clk 0:01:34]} 55. Re1+ {[%clk 0:00:08]}  Kf5 {[%clk 0:01:34]} 56. e7 {[%clk 0:00:07]}  Kf6 {[%clk 0:01:34]} 57. Kg3 {[%clk 0:00:08]}  Rxe7 {[%clk 0:01:35]} 58. Rf1+ {[%clk 0:00:06]}  Kg5 {[%clk 0:01:34]} 59. h4+ {[%clk 0:00:06]}  Kg6 {[%clk 0:01:35]} 60. Rf4 {[%clk 0:00:05]}  Re1 {[%clk 0:01:33]} 61. Kf3 {[%clk 0:00:04]}  Rf1+ {[%clk 0:01:33]} 62. Kg4 {[%clk 0:00:04]}  Rxf4+ {[%clk 0:01:34]} 63. Kxf4 {[%clk 0:00:05]}  Kh5 {[%clk 0:01:35]} 64. Kg3 {[%clk 0:00:05]}  Kh6 {[%clk 0:01:35]} 65. Kg4 {[%clk 0:00:06]}  Kh7 {[%clk 0:01:36]} 66. h5 {[%clk 0:00:07]}  Kh8 {[%clk 0:01:37]} 67. Kg5 {[%clk 0:00:08]}  Kg8 {[%clk 0:01:38]} 68. h6 {[%clk 0:00:08]}  Kh8 {[%clk 0:01:39]} 69. Kh5 {[%clk 0:00:09]}  Kg8 {[%clk 0:01:40]} 70. Kg6 {[%clk 0:00:09]}  Kh8 {[%clk 0:01:41]} 71. h7 {[%clk 0:00:10]} 1/2-1/2


[Site "https://www.chess.com"]

[Event "Titled Tuesday Blitz November 16 2021"]
[White "Goltsev, Dmitry"]
[Black "Al-Tarboush, Ward"]
[WhiteFideId "24176710"]
[BlackFideId "7601450"]
[WhiteElo "2259"]
[BlackElo "2276"]
[Result "1-0"]
[Round "03"]
[TimeControl "180+1"]
[Date "2021.11.16"]
[WhiteClock "0:00:20"]
[BlackClock "0:00:05"]

1. e4 {[%clk 0:02:43]}  e6 {[%clk 0:02:57]} 2. d4 {[%clk 0:02:43]}  d5 {[%clk 0:02:58]} 3. exd5 {[%clk 0:02:44]}  exd5 {[%clk 0:02:58]} 4. Bd3 {[%clk 0:02:44]}  Nc6 {[%clk 0:02:54]} 5. Nf3 {[%clk 0:02:45]}  Bg4 {[%clk 0:02:51]} 6. c3 {[%clk 0:02:44]}  Bd6 {[%clk 0:02:51]} 7. h3 {[%clk 0:02:43]}  Bh5 {[%clk 0:02:50]} 8. O-O {[%clk 0:02:44]}  Nge7 {[%clk 0:02:49]} 9. Re1 {[%clk 0:02:43]}  Qd7 {[%clk 0:02:48]} 10. b4 {[%clk 0:02:40]}  f6 {[%clk 0:02:42]} 11. a4 {[%clk 0:02:38]}  O-O-O {[%clk 0:02:40]} 12. Nbd2 {[%clk 0:02:34]}  g5 {[%clk 0:02:38]} 13. Nb3 {[%clk 0:02:31]}  Rdg8 {[%clk 0:02:34]} 14. b5 {[%clk 0:02:23]}  Nd8 {[%clk 0:02:32]} 15. Nc5 {[%clk 0:02:22]}  Bxc5 {[%clk 0:02:32]} 16. dxc5 {[%clk 0:02:23]}  g4 {[%clk 0:02:33]} 17. Nh4 {[%clk 0:02:23]}  c6 {[%clk 0:01:49]} 18. Kh2 {[%clk 0:02:16]}  Qc7+ {[%clk 0:01:44]} 19. g3 {[%clk 0:02:13]}  Nf7 {[%clk 0:01:26]} 20. Bf4 {[%clk 0:02:00]}  Ne5 {[%clk 0:01:26]} 21. Nf5 {[%clk 0:01:52]}  N7g6 {[%clk 0:01:14]} 22. Nd6+ {[%clk 0:00:54]}  Kb8 {[%clk 0:01:14]} 23. bxc6 {[%clk 0:00:48]}  Qxc6 {[%clk 0:01:13]} 24. Bxg6 {[%clk 0:00:46]}  hxg6 {[%clk 0:01:09]} 25. Bxe5 {[%clk 0:00:45]}  fxe5 {[%clk 0:01:09]} 26. Rxe5 {[%clk 0:00:46]}  gxh3 {[%clk 0:00:51]} 27. Qxd5 {[%clk 0:00:44]}  Qxd5 {[%clk 0:00:51]} 28. Rxd5 {[%clk 0:00:45]}  Bf3 {[%clk 0:00:51]} 29. Re5 {[%clk 0:00:44]}  Bc6 {[%clk 0:00:51]} 30. Rb1 {[%clk 0:00:40]}  Rf8 {[%clk 0:00:50]} 31. f4 {[%clk 0:00:38]}  Rh7 {[%clk 0:00:50]} 32. a5 {[%clk 0:00:33]}  a6 {[%clk 0:00:49]} 33. Rg5 {[%clk 0:00:34]}  Rf6 {[%clk 0:00:46]} 34. Re1 {[%clk 0:00:32]}  Rh8 {[%clk 0:00:44]} 35. Re7 {[%clk 0:00:31]}  Ka7 {[%clk 0:00:43]} 36. Rg7 {[%clk 0:00:29]}  Rh6 {[%clk 0:00:40]} 37. Nf7 {[%clk 0:00:27]}  Rh5 {[%clk 0:00:30]} 38. Rxh5 {[%clk 0:00:27]}  gxh5 {[%clk 0:00:30]} 39. Kxh3 {[%clk 0:00:27]}  Rf5 {[%clk 0:00:22]} 40. Ne5 {[%clk 0:00:24]}  Be4 {[%clk 0:00:10]} 41. c6 {[%clk 0:00:23]}  Rf8 {[%clk 0:00:06]} 42. Rxb7+ {[%clk 0:00:23]}  Ka8 {[%clk 0:00:07]} 43. Rg7 {[%clk 0:00:22]}  Rd8 {[%clk 0:00:05]} 44. Rd7 {[%clk 0:00:21]}  Rc8 {[%clk 0:00:04]} 45. c7 {[%clk 0:00:19]}  Kb7 {[%clk 0:00:04]} 46. Nf7 {[%clk 0:00:20]}  Rxc7 {[%clk 0:00:04]} 47. Nd6+ {[%clk 0:00:20]}  Kc6 {[%clk 0:00:04]} 48. Rxc7+ {[%clk 0:00:21]}  Kxd6 {[%clk 0:00:05]} 49. Ra7 {[%clk 0:00:21]}  Bd3 {[%clk 0:00:04]} 50. Kh4 {[%clk 0:00:21]}  Be2 {[%clk 0:00:05]} 51. Rh7 {[%clk 0:00:20]}  Kc5 {[%clk 0:00:05]} 1-0


[Site "https://www.chess.com"]

[Event "Titled Tuesday Blitz November 16 2021"]
[White "Harshavardhan G B"]
[Black "Terry, Renato"]
[WhiteFideId "25059009"]
[BlackFideId "3803457"]
[WhiteElo "1825"]
[BlackElo "2577"]
[Result "0-1"]
[Round "03"]
[TimeControl "180+1"]
[Date "2021.11.16"]
[WhiteClock "0:00:55"]
[BlackClock "0:00:36"]

1. Nf3 {[%clk 0:03:00]}  Nf6 {[%clk 0:02:59]} 2. c4 {[%clk 0:03:00]}  b6 {[%clk 0:02:59]} 3. Nc3 {[%clk 0:02:59]}  Bb7 {[%clk 0:03:00]} 4. g3 {[%clk 0:02:57]}  c5 {[%clk 0:03:00]} 5. Bg2 {[%clk 0:02:57]}  g6 {[%clk 0:03:00]} 6. O-O {[%clk 0:02:57]}  Bg7 {[%clk 0:03:00]} 7. b3 {[%clk 0:02:57]}  d5 {[%clk 0:02:54]} 8. cxd5 {[%clk 0:02:56]}  Nxd5 {[%clk 0:02:54]} 9. Bb2 {[%clk 0:02:57]}  Nc6 {[%clk 0:02:51]} 10. Rc1 {[%clk 0:02:52]}  Rc8 {[%clk 0:02:45]} 11. Qc2 {[%clk 0:02:51]}  Nd4 {[%clk 0:02:42]} 12. Qd1 {[%clk 0:02:47]}  Nxc3 {[%clk 0:01:56]} 13. Bxc3 {[%clk 0:02:39]}  Bxf3 {[%clk 0:01:56]} 14. Bxd4 {[%clk 0:02:25]}  Bxe2 {[%clk 0:01:44]} 15. Bxg7 {[%clk 0:02:00]}  Bxd1 {[%clk 0:01:44]} 16. Bxh8 {[%clk 0:01:59]}  Bg4 {[%clk 0:01:38]} 17. Bc3 {[%clk 0:01:51]}  Be6 {[%clk 0:01:32]} 18. Rfe1 {[%clk 0:01:49]}  Bd5 {[%clk 0:01:31]} 19. Bf1 {[%clk 0:01:47]}  Qd7 {[%clk 0:01:25]} 20. Re3 {[%clk 0:01:43]}  Kf8 {[%clk 0:01:13]} 21. Rce1 {[%clk 0:01:41]}  e6 {[%clk 0:01:13]} 22. h4 {[%clk 0:01:38]}  h5 {[%clk 0:01:12]} 23. Bh3 {[%clk 0:01:32]}  b5 {[%clk 0:01:07]} 24. g4 {[%clk 0:01:30]}  hxg4 {[%clk 0:01:07]} 25. Bxg4 {[%clk 0:01:31]}  b4 {[%clk 0:01:08]} 26. Bf6 {[%clk 0:01:30]}  Qd6 {[%clk 0:01:05]} 27. Re5 {[%clk 0:01:14]}  Ke8 {[%clk 0:00:59]} 28. h5 {[%clk 0:01:11]}  gxh5 {[%clk 0:00:59]} 29. Rxh5 {[%clk 0:00:58]}  Qf4 {[%clk 0:00:55]} 30. Rxd5 {[%clk 0:00:56]}  Qxg4+ {[%clk 0:00:48]} 31. Kf1 {[%clk 0:00:56]}  Qh3+ {[%clk 0:00:47]} 32. Kg1 {[%clk 0:00:56]}  Qg4+ {[%clk 0:00:36]} 33. Kf1 {[%clk 0:00:55]}  Qf3 {[%clk 0:00:36]} 0-1


[Site "https://www.chess.com"]

[Event "Titled Tuesday Blitz November 16 2021"]
[White "Khanin, Semen"]
[Black "Gontcharov, Vladislav"]
[WhiteFideId "4111990"]
[BlackFideId "4123492"]
[WhiteElo "2442"]
[BlackElo "2503"]
[Result "1-0"]
[Round "03"]
[TimeControl "180+1"]
[Date "2021.11.16"]
[WhiteClock "0:01:06"]
[BlackClock "0:01:38"]

1. c4 {[%clk 0:03:00]}  Nf6 {[%clk 0:02:59]} 2. Nc3 {[%clk 0:03:00]}  c5 {[%clk 0:02:59]} 3. g3 {[%clk 0:02:59]}  Nc6 {[%clk 0:02:58]} 4. Bg2 {[%clk 0:02:59]}  g6 {[%clk 0:02:58]} 5. d3 {[%clk 0:02:53]}  Bg7 {[%clk 0:02:58]} 6. Nf3 {[%clk 0:02:49]}  O-O {[%clk 0:02:56]} 7. Bd2 {[%clk 0:02:48]}  b6 {[%clk 0:02:50]} 8. Qc1 {[%clk 0:02:46]}  Re8 {[%clk 0:02:50]} 9. Bh6 {[%clk 0:02:45]}  Bh8 {[%clk 0:02:50]} 10. h4 {[%clk 0:02:33]}  Bb7 {[%clk 0:02:46]} 11. h5 {[%clk 0:02:33]}  d5 {[%clk 0:02:44]} 12. hxg6 {[%clk 0:02:33]}  fxg6 {[%clk 0:02:44]} 13. Qg5 {[%clk 0:01:53]}  dxc4 {[%clk 0:02:27]} 14. O-O-O {[%clk 0:01:44]}  Nd4 {[%clk 0:02:23]} 15. Nh4 {[%clk 0:01:19]}  Ne6 {[%clk 0:02:15]} 16. Qe5 {[%clk 0:01:17]}  Qd7 {[%clk 0:01:38]} 17. Bxb7 {[%clk 0:01:06]}  Ng4 {[%clk 0:01:38]} 18. Qd5 {[%clk 0:01:06]} 1-0


[Site "https://www.chess.com"]

[Event "Titled Tuesday Blitz November 16 2021"]
[White "Leitao, Rafael"]
[Black "Tari, Aryan"]
[WhiteFideId "2101246"]
[BlackFideId "1510045"]
[WhiteElo "2609"]
[BlackElo "2656"]
[Result "0-1"]
[Round "03"]
[TimeControl "180+1"]
[Date "2021.11.16"]
[WhiteClock "0:00:40"]
[BlackClock "0:01:40"]

1. c4 {[%clk 0:03:00]}  c6 {[%clk 0:02:57]} 2. e4 {[%clk 0:02:59]}  d5 {[%clk 0:02:55]} 3. exd5 {[%clk 0:02:59]}  cxd5 {[%clk 0:02:56]} 4. d4 {[%clk 0:03:00]}  Nf6 {[%clk 0:02:55]} 5. Nc3 {[%clk 0:02:59]}  g6 {[%clk 0:02:55]} 6. cxd5 {[%clk 0:02:57]}  Bg7 {[%clk 0:02:45]} 7. Bc4 {[%clk 0:02:51]}  O-O {[%clk 0:02:42]} 8. Nge2 {[%clk 0:02:47]}  b6 {[%clk 0:02:11]} 9. O-O {[%clk 0:02:30]}  Ba6 {[%clk 0:02:11]} 10. Bb3 {[%clk 0:02:16]}  b5 {[%clk 0:02:10]} 11. a3 {[%clk 0:02:08]}  Nbd7 {[%clk 0:02:09]} 12. Re1 {[%clk 0:02:03]}  Nb6 {[%clk 0:02:09]} 13. Nf4 {[%clk 0:02:04]}  Qd7 {[%clk 0:02:02]} 14. Nd3 {[%clk 0:01:58]}  Bc8 {[%clk 0:01:46]} 15. Nc5 {[%clk 0:00:42]}  Qd8 {[%clk 0:01:45]} 16. Qf3 {[%clk 0:00:40]}  Bg4 {[%clk 0:01:40]} 0-1


[Site "https://www.chess.com"]

[Event "Titled Tuesday Blitz November 16 2021"]
[White "Levitskiy, Andrey"]
[Black "Antipov, Mikhail Al."]
[WhiteFideId "14132885"]
[BlackFideId "4107012"]
[WhiteElo "2340"]
[BlackElo "2587"]
[Result "0-1"]
[Round "03"]
[TimeControl "180+1"]
[Date "2021.11.16"]
[WhiteClock "0:00:08"]
[BlackClock "0:00:52"]

1. e4 {[%clk 0:03:00]}  c5 {[%clk 0:02:57]} 2. Nf3 {[%clk 0:03:01]}  d6 {[%clk 0:02:56]} 3. d4 {[%clk 0:03:01]}  cxd4 {[%clk 0:02:57]} 4. Nxd4 {[%clk 0:03:02]}  Nf6 {[%clk 0:02:57]} 5. Nc3 {[%clk 0:03:02]}  a6 {[%clk 0:02:58]} 6. h3 {[%clk 0:03:02]}  e6 {[%clk 0:02:54]} 7. g4 {[%clk 0:03:02]}  h6 {[%clk 0:02:53]} 8. Bg2 {[%clk 0:03:00]}  Nc6 {[%clk 0:02:33]} 9. Be3 {[%clk 0:02:58]}  g5 {[%clk 0:02:29]} 10. Qe2 {[%clk 0:02:46]}  Ne5 {[%clk 0:02:27]} 11. O-O-O {[%clk 0:02:30]}  Qc7 {[%clk 0:02:26]} 12. Kb1 {[%clk 0:01:50]}  b5 {[%clk 0:02:08]} 13. Nb3 {[%clk 0:01:19]}  b4 {[%clk 0:01:47]} 14. Na4 {[%clk 0:01:00]}  Nfd7 {[%clk 0:01:44]} 15. h4 {[%clk 0:00:52]}  Rg8 {[%clk 0:01:43]} 16. hxg5 {[%clk 0:00:49]}  hxg5 {[%clk 0:01:44]} 17. Nd4 {[%clk 0:00:30]}  Nc4 {[%clk 0:00:58]} 18. Bc1 {[%clk 0:00:19]}  Rb8 {[%clk 0:00:58]} 19. Rh6 {[%clk 0:00:16]}  Bxh6 {[%clk 0:00:54]} 20. b3 {[%clk 0:00:15]}  Na3+ {[%clk 0:00:53]} 21. Ka1 {[%clk 0:00:15]}  Bg7 {[%clk 0:00:53]} 22. Bxa3 {[%clk 0:00:12]}  bxa3 {[%clk 0:00:53]} 23. c3 {[%clk 0:00:12]}  Nb6 {[%clk 0:00:53]} 24. e5 {[%clk 0:00:09]}  Nxa4 {[%clk 0:00:53]} 25. exd6 {[%clk 0:00:08]}  Qxc3+ {[%clk 0:00:52]} 0-1


[Site "https://www.chess.com"]

[Event "Titled Tuesday Blitz November 16 2021"]
[White "Nagy, Gabor"]
[Black "Spata, German"]
[WhiteFideId "737119"]
[BlackFideId "113026"]
[WhiteElo "2534"]
[BlackElo "2238"]
[Result "1-0"]
[Round "03"]
[TimeControl "180+1"]
[Date "2021.11.16"]
[WhiteClock "0:01:38"]
[BlackClock "0:00:18"]

1. e4 {[%clk 0:03:00]}  e6 {[%clk 0:02:55]} 2. d4 {[%clk 0:02:59]}  d5 {[%clk 0:02:55]} 3. Bd3 {[%clk 0:03:00]}  dxe4 {[%clk 0:02:50]} 4. Bxe4 {[%clk 0:03:01]}  Nf6 {[%clk 0:02:51]} 5. Bf3 {[%clk 0:03:01]}  Be7 {[%clk 0:02:51]} 6. Nc3 {[%clk 0:02:57]}  O-O {[%clk 0:02:51]} 7. Nge2 {[%clk 0:02:56]}  c5 {[%clk 0:02:48]} 8. O-O {[%clk 0:02:55]}  Nc6 {[%clk 0:02:47]} 9. Be3 {[%clk 0:02:54]}  cxd4 {[%clk 0:02:42]} 10. Nxd4 {[%clk 0:02:55]}  Ne5 {[%clk 0:02:38]} 11. Be2 {[%clk 0:02:51]}  Bd7 {[%clk 0:02:37]} 12. Bf4 {[%clk 0:02:44]}  Nc6 {[%clk 0:02:23]} 13. Nb3 {[%clk 0:02:34]}  Nb4 {[%clk 0:02:20]} 14. a3 {[%clk 0:02:27]}  Nbd5 {[%clk 0:02:20]} 15. Nxd5 {[%clk 0:02:27]}  Nxd5 {[%clk 0:02:20]} 16. Bg3 {[%clk 0:02:28]}  Bh4 {[%clk 0:02:06]} 17. c4 {[%clk 0:02:23]}  Bxg3 {[%clk 0:01:57]} 18. hxg3 {[%clk 0:02:24]}  Nf6 {[%clk 0:01:51]} 19. Bf3 {[%clk 0:02:21]}  Qc7 {[%clk 0:01:41]} 20. Qd4 {[%clk 0:02:16]}  Rfd8 {[%clk 0:01:29]} 21. Qc5 {[%clk 0:02:08]}  Qxc5 {[%clk 0:00:53]} 22. Nxc5 {[%clk 0:02:09]}  Bc6 {[%clk 0:00:53]} 23. Bxc6 {[%clk 0:02:01]}  bxc6 {[%clk 0:00:53]} 24. Rfd1 {[%clk 0:02:01]}  Kf8 {[%clk 0:00:50]} 25. b4 {[%clk 0:01:59]}  Ke7 {[%clk 0:00:49]} 26. f3 {[%clk 0:01:58]}  Rxd1+ {[%clk 0:00:47]} 27. Rxd1 {[%clk 0:01:56]}  Rd8 {[%clk 0:00:48]} 28. Rxd8 {[%clk 0:01:46]}  Kxd8 {[%clk 0:00:48]} 29. Kf2 {[%clk 0:01:47]}  Nd7 {[%clk 0:00:42]} 30. Nd3 {[%clk 0:01:47]}  f6 {[%clk 0:00:36]} 31. Ke3 {[%clk 0:01:45]}  Nb6 {[%clk 0:00:36]} 32. Kd4 {[%clk 0:01:44]}  e5+ {[%clk 0:00:33]} 33. Kc5 {[%clk 0:01:42]}  Kc7 {[%clk 0:00:33]} 34. b5 {[%clk 0:01:39]}  Nd7+ {[%clk 0:00:24]} 35. Kb4 {[%clk 0:01:38]}  cxb5 {[%clk 0:00:23]} 36. cxb5 {[%clk 0:01:37]}  Nb6 {[%clk 0:00:22]} 37. a4 {[%clk 0:01:37]}  Nd5+ {[%clk 0:00:20]} 38. Kc5 {[%clk 0:01:37]}  Ne3 {[%clk 0:00:19]} 39. a5 {[%clk 0:01:36]}  Nxg2 {[%clk 0:00:19]} 40. b6+ {[%clk 0:01:36]}  axb6+ {[%clk 0:00:20]} 41. axb6+ {[%clk 0:01:37]}  Kb7 {[%clk 0:00:20]} 42. Kb5 {[%clk 0:01:38]}  Ne3 {[%clk 0:00:19]} 43. Nc5+ {[%clk 0:01:38]}  Kc8 {[%clk 0:00:20]} 44. Kc6 {[%clk 0:01:39]}  Nc4 {[%clk 0:00:18]} 45. b7+ {[%clk 0:01:38]} 1-0


[Site "https://www.chess.com"]